fUST/lending_fUST_20250314
["ID","MTS","AMOUNT","RATE_DAILY","PERIOD"]
[356144863,1741960050016,-500.0,8.219e-05,2]
[356144864,1741960050039,-409.80584058,8.219e-05,2]
[356144865,1741960050063,-626.41,8.219e-05,2]
[356144866,1741960050085,-686.91,8.219e-05,2]
[356144867,1741960050108,-690.59,8.219e-05,2]
[356144868,1741960050129,-500.0,8.219e-05,2]
[356144869,1741960050152,-500.0,8.219e-05,2]
[356144870,1741960050174,-632.29,8.219e-05,2]
[356144871,1741960050195,-500.0,8.219e-05,2]
[356144872,1741960050218,-500.0,8.219e-05,2]
[356144873,1741960050245,-607.55,8.219e-05,2]
[356144874,1741960050279,-512.94412046,8.219e-05,2]
[356144875,1741960050304,-500.0,8.219e-05,2]
[356144876,1741960050326,-500.0,8.219e-05,2]
[356144877,1741960050350,-500.0,8.219e-05,2]
[356144878,1741960050372,-500.0,8.219e-05,2]
[356144879,1741960050394,-501.67660358,8.219e-05,2]
[356144880,1741960050421,-500.0,8.219e-05,2]
[356144881,1741960050444,-500.0,8.219e-05,2]
[356144882,1741960050467,-500.0,8.219e-05,2]
[356144883,1741960050489,-603.19,8.219e-05,2]
[356144884,1741960050510,-537.81,8.219e-05,2]
[356144885,1741960050532,-500.0,8.219e-05,2]
[356144886,1741960050554,-742.6,8.219e-05,2]
[356144887,1741960050577,-500.0,8.219e-05,2]
[356144888,1741960050599,-500.0,8.219e-05,2]
[356144889,1741960050621,-500.0,8.219e-05,2]
[356144890,1741960050645,-570.62,8.219e-05,2]
[356144891,1741960050670,-375.13667308,8.219e-05,2]
[356144892,1741960050693,-500.0,8.219e-05,2]
[356144893,1741960050715,-556.73,8.219e-05,2]
[356144894,1741960050738,-514.91015568,8.219e-05,2]
[356144895,1741960050760,-500.0,8.219e-05,2]
[356144896,1741960050781,-500.0,8.219e-05,2]
[356144897,1741960050803,-500.0,8.219e-05,2]
[356144898,1741960050825,-500.0,8.219e-05,2]
[356144899,1741960050848,-500.0,8.219e-05,2]
[356144900,1741960050871,-500.0,8.219e-05,2]
[356144901,1741960050896,-585.25,8.219e-05,2]
[356144902,1741960050928,-500.0,8.219e-05,2]
[356144903,1741960050953,-500.0,8.219e-05,2]
[356144904,1741960050977,-500.0,8.219e-05,2]
[356144905,1741960051003,-500.0,8.219e-05,2]
[356144906,1741960051028,-500.0,8.219e-05,2]
[356144907,1741960051051,-500.0,8.219e-05,2]
[356144908,1741960051072,-500.0,8.219e-05,2]
[356144909,1741960051318,-500.0,8.219e-05,2]
[356144910,1741960051341,-500.0,8.219e-05,2]
[356144911,1741960051364,-740.26,8.219e-05,2]
[356144912,1741960051388,-500.0,8.219e-05,2]
[356144913,1741960051416,-500.0,8.219e-05,2]
[356144914,1741960051439,-500.0,8.219e-05,2]
[356144915,1741960051461,-500.0,8.219e-05,2]
[356144916,1741960051483,-500.0,8.219e-05,2]
[356144917,1741960051507,-500.0,8.219e-05,2]
[356144918,1741960051530,-500.0,8.219e-05,2]
[356144919,1741960051553,-500.0,8.219e-05,2]
[356144920,1741960051575,-500.0,8.219e-05,2]
[356144921,1741960051597,-500.0,8.219e-05,2]
[356144922,1741960051620,-677.36,8.219e-05,2]
[356144923,1741960051642,-800.63528509,8.219e-05,2]
[356144925,1741960155088,-300.0,8.118e-05,2]
[356144926,1741960155111,-196836.93813924,8.119e-05,2]
[356145024,1741960233771,-300.0,8.118e-05,2]
[356145025,1741960233782,-25163.06186076,8.119e-05,2]
[356145026,1741960233792,-427.27196749,8.192e-05,2]
[356145027,1741960233805,-500.0,8.193e-05,2]
[356145028,1741960233815,-500.0,8.193e-05,2]
[356145029,1741960233825,-500.0,8.193e-05,2]
[356145030,1741960233836,-500.0,8.193e-05,2]
[356145031,1741960233845,-500.0,8.193e-05,2]
[356145032,1741960233855,-500.0,8.193e-05,2]
[356145033,1741960233865,-500.0,8.193e-05,2]
[356145034,1741960233875,-500.0,8.193e-05,2]
[356145035,1741960233886,-500.0,8.193e-05,2]
[356145036,1741960233896,-500.0,8.193e-05,2]
[356145037,1741960233906,-500.0,8.193e-05,2]
[356145038,1741960233917,-503.75257409,8.193e-05,2]
[356145039,1741960233928,-39.72471491,8.219e-05,2]
[356145040,1741960233938,-500.0,8.219e-05,2]
[356145041,1741960233949,-500.0,8.219e-05,2]
[356145042,1741960233959,-500.0,8.219e-05,2]
[356145043,1741960233969,-576.12843149,8.219e-05,2]
[356145044,1741960233980,-500.0,8.219e-05,2]
[356145045,1741960233990,-1327.28,8.219e-05,2]
[356145046,1741960234001,-500.0,8.219e-05,2]
[356145047,1741960234011,-521.5,8.219e-05,2]
[356145048,1741960234021,-525.58,8.219e-05,2]
[356145049,1741960234031,-500.0,8.219e-05,2]
[356145050,1741960234041,-500.0,8.219e-05,2]
[356145051,1741960234053,-653.83,8.219e-05,2]
[356145052,1741960234063,-1200.49,8.219e-05,2]
[356145053,1741960234073,-500.0,8.219e-05,2]
[356145054,1741960234083,-597.94,8.219e-05,2]
[356145055,1741960234093,-668.33,8.219e-05,2]
[356145056,1741960234103,-500.0,8.219e-05,2]
[356145057,1741960234114,-500.0,8.219e-05,2]
[356145058,1741960234124,-500.0,8.219e-05,2]
[356145059,1741960234134,-1238.58,8.219e-05,2]
[356145060,1741960234144,-500.0,8.219e-05,2]
[356145061,1741960234154,-612.16,8.219e-05,2]
[356145062,1741960234164,-180.31992628,8.219e-05,2]
[356145063,1741960234473,-319.68007372,8.219e-05,2]
[356145064,1741960234483,-500.0,8.219e-05,2]
[356145065,1741960234493,-1941.52,8.219e-05,2]
[356145066,1741960234502,-500.0,8.219e-05,2]
[356145067,1741960234513,-500.0,8.219e-05,2]
[356145068,1741960234522,-500.0,8.219e-05,2]
[356145069,1741960234532,-500.0,8.219e-05,2]
[356145070,1741960234541,-522.17740134,8.219e-05,2]
[356145071,1741960234555,-500.0,8.219e-05,2]
[356145072,1741960234565,-694.53,8.219e-05,2]
[356145073,1741960234575,-723.45,8.219e-05,2]
[356145074,1741960234585,-500.0,8.219e-05,2]
[356145075,1741960234595,-500.0,8.219e-05,2]
[356145076,1741960234605,-500.0,8.219e-05,2]
[356145077,1741960234615,-500.0,8.219e-05,2]
[356145078,1741960234624,-500.0,8.219e-05,2]
[356145079,1741960234635,-559.94,8.219e-05,2]
[356145080,1741960234644,-500.0,8.219e-05,2]
[356145081,1741960234654,-500.0,8.219e-05,2]
[356145082,1741960234665,-500.0,8.219e-05,2]
[356145083,1741960234675,-500.0,8.219e-05,2]
[356145084,1741960234685,-500.0,8.219e-05,2]
[356145085,1741960234695,-617.77,8.219e-05,2]
[356145086,1741960234706,-500.0,8.219e-05,2]
[356145087,1741960234716,-641.96,8.219e-05,2]
[356145088,1741960234727,-1065.13,8.219e-05,2]
[356145089,1741960234737,-500.0,8.219e-05,2]
[356145090,1741960234747,-500.0,8.219e-05,2]
[356145091,1741960234757,-500.0,8.219e-05,2]
[356145092,1741960234767,-456.02307947,8.219e-05,2]
[356145093,1741960234776,-500.0,8.219e-05,2]
[356145094,1741960234785,-520.06368687,8.219e-05,2]
[356145095,1741960234797,-695.94,8.219e-05,2]
[356145096,1741960234806,-500.0,8.219e-05,2]
[356145097,1741960234816,-500.0,8.219e-05,2]
[356145098,1741960234826,-500.0,8.219e-05,2]
[356145099,1741960234836,-500.0,8.219e-05,2]
[356145100,1741960234845,-500.0,8.219e-05,2]
[356145101,1741960234855,-500.0,8.219e-05,2]
[356145102,1741960234864,-500.0,8.219e-05,2]
[356145103,1741960234874,-500.0,8.219e-05,2]
[356145104,1741960234886,-418.7448967,8.219e-05,2]
[356145105,1741960234895,-500.0,8.219e-05,2]
[356145106,1741960234905,-500.0,8.219e-05,2]
[356145107,1741960234916,-500.0,8.219e-05,2]
[356145108,1741960234926,-667.95,8.219e-05,2]
[356145109,1741960234936,-754.31,8.219e-05,2]
[356145110,1741960234946,-510.39229188,8.219e-05,2]
[356145111,1741960234956,-1434.18,8.219e-05,2]
[356145112,1741960234966,-500.0,8.219e-05,2]
[356145113,1741960234975,-500.0,8.219e-05,2]
[356145114,1741960234985,-260.72647345,8.219e-05,2]
[356145115,1741960234995,-500.0,8.219e-05,2]
[356145116,1741960235005,-570.37,8.219e-05,2]
[356145117,1741960235015,-500.0,8.219e-05,2]
[356145118,1741960235025,-500.0,8.219e-05,2]
[356145119,1741960235035,-500.0,8.219e-05,2]
[356145120,1741960235047,-500.0,8.219e-05,2]
[356145121,1741960235057,-645.73,8.219e-05,2]
[356145122,1741960235067,-500.0,8.219e-05,2]
[356145123,1741960235077,-526.27,8.219e-05,2]
[356145124,1741960235087,-500.0,8.219e-05,2]
[356145125,1741960235096,-500.0,8.219e-05,2]
[356145126,1741960235105,-2568.66,8.219e-05,2]
[356145127,1741960235115,-500.0,8.219e-05,2]
[356145128,1741960235124,-500.0,8.219e-05,2]
[356145129,1741960235134,-920.23,8.219e-05,2]
[356145130,1741960235144,-500.0,8.219e-05,2]
[356145131,1741960235153,-522.4,8.219e-05,2]
[356145132,1741960235163,-500.0,8.219e-05,2]
[356145133,1741960235173,-500.0,8.219e-05,2]
[356145134,1741960235183,-500.0,8.219e-05,2]
[356145135,1741960235192,-616.66,8.219e-05,2]
[356145136,1741960235201,-573.51,8.219e-05,2]
[356145137,1741960235211,-500.0,8.219e-05,2]
[356145138,1741960235220,-2456.95,8.219e-05,2]
[356145139,1741960235230,-16698.81,8.219e-05,2]
[356145140,1741960235239,-500.0,8.219e-05,2]
[356145141,1741960235248,-500.0,8.219e-05,2]
[356145142,1741960235258,-500.0,8.219e-05,2]
[356145143,1741960235268,-500.0,8.219e-05,2]
[356145144,1741960235278,-500.0,8.219e-05,2]
[356145145,1741960235288,-500.0,8.219e-05,2]
[356145146,1741960235303,-500.0,8.219e-05,2]
[356145147,1741960235314,-1061.89,8.219e-05,2]
[356145148,1741960235328,-500.0,8.219e-05,2]
[356145149,1741960235337,-500.0,8.219e-05,2]
[356145150,1741960235346,-9259.26971817,8.219e-05,2]
[356145188,1741960239028,-32745.21054365,8.119e-05,2]
[356145204,1741960240503,-497.36278394,8.119e-05,2]
[356145205,1741960240515,-909.21143477,8.119e-05,2]
[356145242,1741960244223,-1090.32015157,8.119e-05,2]
[356145254,1741960246354,-839.68132512,8.119e-05,2]
[356145261,1741960353311,-150.0,8.118e-05,2]
[356145262,1741960397214,-156.01943339,8.118e-05,2]
[356145263,1741960397238,-54.98056661,8.118e-05,2]
[356145264,1741960524522,-422.0,8.118e-05,2]
[356145267,1741960537375,-23.01943339,8.118e-05,2]
[356145268,1741960537406,-216.59164141,8.118e-05,2]
[356145269,1741960543973,-216.59164141,8.118e-05,2]
[356145270,1741960562660,-66.81671718,8.118e-05,2]
[356145271,1741960562683,-193.57220802,8.118e-05,2]
[356145272,1741960568151,-170.24743234,8.118e-05,2]
[356145274,1741960622207,-22.82495696,8.118e-05,2]
[356145275,1741960622232,-127.17504304,8.119e-05,2]
[356145276,1741960627598,-300.0,8.037e-05,2]
[356145277,1741960633688,-210.53246295,8.037e-05,2]
[356145278,1741960639638,-334.46753705,8.118e-05,2]
[356145279,1741960664133,-506.0,8.036e-05,2]
[356145280,1741960693927,-300.0,8.035e-05,2]
[356145281,1741960713593,-200.0,8.035e-05,2]
[356145282,1741960720728,-248.146138,0.00014,14]
[356145283,1741960720754,-1000.0,0.00014,14]
[356145284,1741960720806,-155.0,0.00018,30]
[356145285,1741960720836,-1000.0,0.00019,19]
[356145286,1741960720869,-500.0,0.0002,10]
[356145287,1741960720894,-1796.26203944,0.0002,30]
[356145288,1741960720919,-796.27038503,0.0002,30]
[356145289,1741960720950,-163.14452003,0.00022,10]
[356145290,1741960720977,-183.99212624,0.00022,15]
[356145291,1741960721004,-589.0,0.00023,10]
[356145292,1741960721031,-1000.0,0.00024,24]
[356145293,1741960721062,-764.43,0.000243,31]
[356145294,1741960721090,-764.43,0.000243,31]
[356145295,1741960721118,-764.43,0.000243,31]
[356145296,1741960721146,-764.43,0.000243,31]
[356145297,1741960721172,-764.43,0.000243,31]
[356145298,1741960721199,-764.43,0.000243,31]
[356145299,1741960721226,-764.43,0.000243,31]
[356145300,1741960721252,-764.43,0.000243,31]
[356145301,1741960721279,-764.43,0.000243,31]
[356145302,1741960721306,-764.43,0.000243,31]
[356145303,1741960721332,-764.43,0.000243,31]
[356145304,1741960721359,-764.43,0.000243,31]
[356145305,1741960721386,-764.43,0.000243,31]
[356145306,1741960721412,-764.43,0.000243,31]
[356145307,1741960721440,-764.43,0.000243,31]
[356145308,1741960721471,-764.43,0.000243,31]
[356145309,1741960721497,-3094.82,0.000244,14]
[356145310,1741960721523,-177242.48479126,0.000245,10]
[356145311,1741960743228,-14.21360337,8.035e-05,2]
[356145312,1741960743256,-165.53246295,8.035e-05,2]
[356145313,1741960743284,-120.25393368,8.035e-05,2]
[356145314,1741960744708,-179.74606632,8.035e-05,2]
[356145324,1741960859782,-176.93304614,7.955e-05,2]
[356145325,1741960859806,-26.32088754,8.034e-05,2]
[356145326,1741960933824,-206.6034146,8.033e-05,2]
[356145328,1741960953204,-150.0,8.032e-05,2]
[356145329,1741960955980,-126.21621344,8.032e-05,2]
[356145330,1741960956006,-50.7168327,8.032e-05,2]
[356145331,1741960972555,-126.21621344,8.032e-05,2]
[356145332,1741960972580,-46.85074042,8.032e-05,2]
[356145334,1741961093590,-150.0,7.162e-05,2]
[356145335,1741961130294,-293.3887611,7.162e-05,2]
[356145336,1741961130317,-146.50060898,8.032e-05,2]
[356145337,1741961130339,-3.49939102,8.033e-05,2]
[356145338,1741961130971,-350.0,8.033e-05,2]
[356145346,1741961374108,-27484.14411825,8.033e-05,2]
[356145347,1741961374132,-9468.91552246,8.034e-05,2]
[356145348,1741961374156,-160183.87849853,8.119e-05,2]
[356145435,1741961439021,-25607.16021938,8.119e-05,2]
[356145436,1741961439033,-1000.1156263,8.119e-05,2]
[356145437,1741961439043,-2097.0592061,8.193e-05,2]
[356145438,1741961439052,-500.0,8.193e-05,2]
[356145440,1741961439062,-500.0,8.193e-05,2]
[356145441,1741961439071,-500.0,8.193e-05,2]
[356145443,1741961439082,-500.0,8.193e-05,2]
[356145444,1741961439091,-500.0,8.193e-05,2]
[356145445,1741961439101,-500.0,8.193e-05,2]
[356145446,1741961439111,-500.0,8.193e-05,2]
[356145447,1741961439121,-500.0,8.193e-05,2]
[356145448,1741961439131,-500.0,8.193e-05,2]
[356145450,1741961439141,-500.0,8.193e-05,2]
[356145452,1741961439151,-500.0,8.193e-05,2]
[356145453,1741961439160,-202.00344031,8.193e-05,2]
[356145455,1741961439170,-500.0,8.193e-05,2]
[356145456,1741961439180,-500.0,8.193e-05,2]
[356145457,1741961439189,-501.26508522,8.193e-05,2]
[356145458,1741961439199,-500.0,8.219e-05,2]
[356145459,1741961439208,-500.0,8.219e-05,2]
[356145460,1741961439220,-500.0,8.219e-05,2]
[356145461,1741961439230,-500.0,8.219e-05,2]
[356145462,1741961439240,-511.11079264,8.219e-05,2]
[356145463,1741961439249,-500.0,8.219e-05,2]
[356145464,1741961439258,-500.0,8.219e-05,2]
[356145465,1741961439267,-500.0,8.219e-05,2]
[356145466,1741961439277,-500.0,8.219e-05,2]
[356145467,1741961439286,-181.49611519,8.219e-05,2]
[356145546,1741961447172,-318.50388481,8.219e-05,2]
[356145548,1741961447182,-578.06,8.219e-05,2]
[356145550,1741961447192,-500.0,8.219e-05,2]
[356145552,1741961447203,-560.86,8.219e-05,2]
[356145553,1741961447213,-506.26071742,8.219e-05,2]
[356145554,1741961447226,-500.0,8.219e-05,2]
[356145555,1741961447235,-500.0,8.219e-05,2]
[356145556,1741961447245,-676.39,8.219e-05,2]
[356145557,1741961447255,-500.0,8.219e-05,2]
[356145558,1741961447265,-516.08539251,8.219e-05,2]
[356145559,1741961447316,-84.22460749,8.219e-05,2]
[356145560,1741961447326,-500.0,8.219e-05,2]
[356145562,1741961447336,-500.0,8.219e-05,2]
[356145564,1741961447346,-137.68266071,8.219e-05,2]
[356145597,1741961447918,-362.31733929,8.219e-05,2]
[356145598,1741961447929,-244.96424516,8.219e-05,2]
[356145599,1741961447939,-500.0,8.219e-05,2]
[356145600,1741961447949,-500.0,8.219e-05,2]
[356145601,1741961447959,-500.0,8.219e-05,2]
[356145602,1741961447971,-500.0,8.219e-05,2]
[356145603,1741961447980,-500.0,8.219e-05,2]
[356145604,1741961447990,-500.0,8.219e-05,2]
[356145605,1741961447999,-500.0,8.219e-05,2]
[356145606,1741961448009,-500.0,8.219e-05,2]
[356145607,1741961448019,-500.0,8.219e-05,2]
[356145608,1741961448030,-500.0,8.219e-05,2]
[356145609,1741961448042,-500.0,8.219e-05,2]
[356145610,1741961448052,-523.60724526,8.219e-05,2]
[356145611,1741961448062,-640.31774019,8.219e-05,2]
[356145612,1741961448072,-664.97,8.219e-05,2]
[356145613,1741961448082,-239.16465581,8.219e-05,2]
[356145614,1741961448093,-500.0,8.219e-05,2]
[356145615,1741961448103,-503.68,8.219e-05,2]
[356145616,1741961448112,-500.0,8.219e-05,2]
[356145617,1741961448122,-506.20107156,8.219e-05,2]
[356145618,1741961448132,-500.0,8.219e-05,2]
[356145619,1741961448143,-500.0,8.219e-05,2]
[356145620,1741961448152,-151.0,8.219e-05,2]
[356145621,1741961448162,-500.0,8.219e-05,2]
[356145622,1741961448171,-500.0,8.219e-05,2]
[356145623,1741961448181,-500.0,8.219e-05,2]
[356145624,1741961448191,-915.14,8.219e-05,2]
[356145625,1741961448201,-500.0,8.219e-05,2]
[356145626,1741961448211,-500.0,8.219e-05,2]
[356145627,1741961448221,-500.0,8.219e-05,2]
[356145628,1741961448231,-902.04,8.219e-05,2]
[356145629,1741961448240,-500.0,8.219e-05,2]
[356145630,1741961448250,-500.0,8.219e-05,2]
[356145631,1741961448259,-500.0,8.219e-05,2]
[356145632,1741961448269,-500.0,8.219e-05,2]
[356145633,1741961448280,-500.0,8.219e-05,2]
[356145634,1741961448290,-640.12,8.219e-05,2]
[356145635,1741961448300,-507.45694517,8.219e-05,2]
[356145636,1741961448311,-515.63,8.219e-05,2]
[356145637,1741961448321,-500.0,8.219e-05,2]
[356145638,1741961448333,-500.0,8.219e-05,2]
[356145639,1741961448348,-500.0,8.219e-05,2]
[356145640,1741961448359,-500.0,8.219e-05,2]
[356145641,1741961448371,-791.67,8.219e-05,2]
[356145642,1741961448381,-605.95,8.219e-05,2]
[356145643,1741961448391,-1310.66,8.219e-05,2]
[356145644,1741961448401,-500.0,8.219e-05,2]
[356145645,1741961448410,-500.0,8.219e-05,2]
[356145646,1741961448420,-582.23,8.219e-05,2]
[356145647,1741961448430,-524.72741128,8.219e-05,2]
[356145648,1741961448439,-615.46,8.219e-05,2]
[356145649,1741961448449,-500.0,8.219e-05,2]
[356145650,1741961448459,-1174.26,8.219e-05,2]
[356145651,1741961448470,-500.0,8.219e-05,2]
[356145652,1741961448480,-615.21,8.219e-05,2]
[356145653,1741961448491,-500.0,8.219e-05,2]
[356145654,1741961448501,-1271.95,8.219e-05,2]
[356145655,1741961448510,-500.0,8.219e-05,2]
[356145656,1741961448520,-500.0,8.219e-05,2]
[356145657,1741961448530,-500.0,8.219e-05,2]
[356145658,1741961448540,-500.0,8.219e-05,2]
[356145659,1741961448550,-603.23490612,8.219e-05,2]
[356145660,1741961448559,-500.0,8.219e-05,2]
[356145661,1741961448569,-500.0,8.219e-05,2]
[356145662,1741961448578,-658.29,8.219e-05,2]
[356145663,1741961448588,-500.0,8.219e-05,2]
[356145664,1741961448597,-666.95,8.219e-05,2]
[356145665,1741961448607,-500.0,8.219e-05,2]
[356145666,1741961448617,-629.18755004,8.219e-05,2]
[356145667,1741961448626,-503.281628,8.219e-05,2]
[356145668,1741961448636,-500.0,8.219e-05,2]
[356145669,1741961448646,-722.88,8.219e-05,2]
[356145670,1741961448656,-500.0,8.219e-05,2]
[356145671,1741961448672,-661.82,8.219e-05,2]
[356145672,1741961448683,-500.0,8.219e-05,2]
[356145673,1741961448693,-500.0,8.219e-05,2]
[356145674,1741961448703,-500.0,8.219e-05,2]
[356145675,1741961448714,-649.14,8.219e-05,2]
[356145676,1741961448727,-500.0,8.219e-05,2]
[356145677,1741961448737,-500.0,8.219e-05,2]
[356145678,1741961448747,-608.47,8.219e-05,2]
[356145679,1741961448758,-500.0,8.219e-05,2]
[356145680,1741961448769,-500.0,8.219e-05,2]
[356145681,1741961448779,-500.0,8.219e-05,2]
[356145682,1741961448789,-626.59,8.219e-05,2]
[356145683,1741961448799,-618.82,8.219e-05,2]
[356145684,1741961448808,-500.0,8.219e-05,2]
[356145685,1741961448818,-518.09350791,8.219e-05,2]
[356145686,1741961448827,-586.65,8.219e-05,2]
[356145687,1741961448838,-500.0,8.219e-05,2]
[356145688,1741961448848,-500.0,8.219e-05,2]
[356145689,1741961448857,-504.35,8.219e-05,2]
[356145690,1741961448867,-546.84,8.219e-05,2]
[356145691,1741961448876,-517.96054689,8.219e-05,2]
[356145692,1741961448886,-709.41,8.219e-05,2]
[356145693,1741961448896,-500.0,8.219e-05,2]
[356145694,1741961448906,-500.0,8.219e-05,2]
[356145695,1741961448916,-805.34,8.219e-05,2]
[356145696,1741961448926,-1268.34,8.219e-05,2]
[356145697,1741961448936,-533.53,8.219e-05,2]
[356145698,1741961448945,-276.8694766,8.219e-05,2]
[356145699,1741961448955,-430.64907895,8.219e-05,2]
[356145700,1741961448966,-500.0,8.219e-05,2]
[356145701,1741961448976,-500.0,8.219e-05,2]
[356145702,1741961448987,-711.66,8.219e-05,2]
[356145703,1741961448997,-693.31,8.219e-05,2]
[356145704,1741961449008,-500.0,8.219e-05,2]
[356145705,1741961449019,-1150.47,8.219e-05,2]
[356145706,1741961449029,-531.12,8.219e-05,2]
[356145707,1741961449039,-500.0,8.219e-05,2]
[356145708,1741961449050,-500.0,8.219e-05,2]
[356145709,1741961449060,-590.97,8.219e-05,2]
[356145710,1741961449070,-2354.58,8.219e-05,2]
[356145711,1741961449080,-500.0,8.219e-05,2]
[356145712,1741961449089,-500.0,8.219e-05,2]
[356145713,1741961449099,-394.44042313,8.219e-05,2]
[356145714,1741961449109,-500.0,8.219e-05,2]
[356145715,1741961449118,-1017.64,8.219e-05,2]
[356145716,1741961449128,-500.0,8.219e-05,2]
[356145717,1741961449138,-500.0,8.219e-05,2]
[356145718,1741961449148,-500.0,8.219e-05,2]
[356145719,1741961449157,-863.68803897,8.219e-05,2]
[356145720,1741961449171,-9713.04352373,8.219e-05,2]
[356145728,1741961481827,-188.5442356,7.407e-05,2]
[356145731,1741961515146,-161.4557644,7.207e-05,2]
[356145756,1741962295003,-24.5815756,7.207e-05,2]
[356145760,1741962397109,-242.18547723,8.117e-05,2]
[356145762,1741962434159,1141.01827327,8e-05,2]
[356145771,1741962596514,-150.0,8.017e-05,2]
[356145795,1741962632838,-48.53581901,8.017e-05,2]
[356145796,1741962632849,-300.0,8.117e-05,2]
[356145797,1741962632859,-15749.39418099,8.119e-05,2]
[356145807,1741962638786,-500.0,8.117e-05,2]
[356145808,1741962638796,-500.0,8.117e-05,2]
[356145809,1741962638806,-500.0,8.117e-05,2]
[356145810,1741962638816,-500.0,8.117e-05,2]
[356145811,1741962638825,-500.0,8.117e-05,2]
[356145812,1741962638835,-406.18408671,8.117e-05,2]
[356145813,1741962638845,-65545.67310077,8.119e-05,2]
[356145819,1741962641149,-850.0,8.119e-05,2]
[356145843,1741962644889,-232.70688001,8.119e-05,2]
[356145844,1741962645350,-4297.7195645,8.119e-05,2]
[356145853,1741962646996,-4142.9,8.119e-05,2]
[356145879,1741962700997,206.038637,7.208e-05,2]
[356145881,1741962876386,-203.84027914,8.018e-05,2]
[356145883,1741962950751,1000.0,8e-05,2]
[356145884,1741962964500,-161.86409277,8.018e-05,2]
[356145885,1741962967875,-134.29562809,8.018e-05,2]
[356145886,1741962967902,-165.70437191,8.018e-05,2]
[356145888,1741962973533,300.0,8e-05,2]
[356145890,1741963024366,-164.340267,8.018e-05,2]
[356145891,1741963034570,164.340267,8e-05,2]
[356145892,1741963084138,-162.48044704,8.018e-05,2]
[356145893,1741963089532,-7.47491405,8.018e-05,2]
[356145894,1741963089559,-292.52508595,8.018e-05,2]
[356145895,1741963094095,462.48044704,8e-05,2]
[356145896,1741963143760,-30.38425702,8.018e-05,2]
[356145897,1741963143787,-200.73219737,8.018e-05,2]
[356145898,1741963146285,-150.0,8.018e-05,2]
[356145899,1741963154315,381.11645439,8e-05,2]
[356145901,1741963213310,-149.26780263,8.018e-05,2]
[356145902,1741963213355,-3.55476577,8.018e-05,2]
[356145903,1741963229686,152.8225684,8e-05,2]
[356145905,1741963321364,508.6679927,7.397e-05,2]
[356145906,1741963324262,-206.89660538,8.018e-05,2]
[356145907,1741963328691,27093.3177955,8e-05,2]
[356145908,1741963332808,-282.06692467,8.018e-05,2]
[356145909,1741963336418,488.96353005,8e-05,2]
[356145911,1741963383741,-7.48170418,8.018e-05,2]
[356145912,1741963383767,-292.51829582,8.018e-05,2]
[356145913,1741963385176,-200.0,8.018e-05,2]
[356145914,1741963396895,500.0,8e-05,2]
[356145916,1741963417294,1120.71477575,8e-05,2]
[356145917,1741963456272,-7.48170418,8.018e-05,2]
[356145918,1741963456303,-292.51829582,8.018e-05,2]
[356145919,1741963472813,300.0,8e-05,2]
[356145921,1741963531166,-207.48170418,8.018e-05,2]
[356145922,1741963531191,-500.0,8.018e-05,2]
[356145923,1741963531215,-3053.92463959,8.019e-05,2]
[356145924,1741963579999,-150.0,8.018e-05,2]
[356145925,1741963592602,150.0,8e-05,2]
[356145927,1741963634786,11888.4447575,0.0001535,120]
[356145978,1741963831979,-350.0,8.018e-05,2]
[356145979,1741963831990,-5708.49009444,8.019e-05,2]
[356145980,1741963832000,-342.196,8.055e-05,2]
[356145981,1741963832010,-300.0,8.192e-05,2]
[356145982,1741963832020,-500.0,8.193e-05,2]
[356145983,1741963832029,-500.0,8.193e-05,2]
[356145984,1741963832039,-320.77764351,8.193e-05,2]
[356145985,1741963832049,-500.0,8.193e-05,2]
[356145986,1741963832059,-500.0,8.193e-05,2]
[356145987,1741963832070,-500.0,8.193e-05,2]
[356145988,1741963832080,-500.0,8.193e-05,2]
[356145990,1741963832089,-500.0,8.193e-05,2]
[356145992,1741963832099,-500.82198181,8.193e-05,2]